fUST/lending_fUST_20240211
["ID","MTS","AMOUNT","RATE_DAILY","PERIOD"]
[313729351,1707624643005,-500.0,0.00019452,2]
[313729352,1707624643014,-500.0,0.00019452,2]
[313729353,1707624643024,-500.0,0.00019452,2]
[313729354,1707624643034,-500.0,0.00019452,2]
[313729355,1707624643043,-1942.14,0.00019452,2]
[313729356,1707624643052,-1301.71,0.00019452,2]
[313729357,1707624643062,-1888.35,0.00019452,2]
[313729358,1707624643071,-500.0,0.00019452,2]
[313729359,1707624643080,-2600.49271209,0.00019452,2]
[313729432,1707624643669,-181.64923737,0.00013592,2]
[313729434,1707624643678,-2824.04192981,0.0001369,2]
[313729436,1707624643688,-2607.82045622,0.0001369,2]
[313729438,1707624643697,-642.34728791,0.00019452,2]
[313729440,1707624643706,-500.0,0.00019452,2]
[313729442,1707624643716,-3057.15,0.00019452,2]
[313729444,1707624643725,-11313.44,0.00019452,2]
[313729447,1707624643733,-3547.32931158,0.00019452,2]
[313729449,1707624643745,-349.27485397,0.00019452,2]
[313729452,1707624643756,-6000.0,0.00019452,2]
[313729454,1707624643767,-537.80272664,0.00019452,2]
[313729456,1707624643778,-13763.57310781,0.00019452,2]
[313729458,1707624643788,-500.0,0.00019452,2]
[313729460,1707624643797,-530.96364075,0.00019452,2]
[313729462,1707624643807,-310.40365999,0.00019452,2]
[313729464,1707624643816,-1629.43,0.00019452,2]
[313729466,1707624643825,-2670.65,0.00019452,2]
[313729468,1707624643835,-500.0,0.00019452,2]
[313729470,1707624643844,-709.0,0.00019452,2]
[313729472,1707624643853,-585.38524555,0.00019452,2]
[313729474,1707624643864,-2624.66,0.00019452,2]
[313729476,1707624643873,-500.0,0.00019452,2]
[313729478,1707624643886,-500.0,0.00019452,2]
[313729480,1707624643895,-2467.66,0.00019452,2]
[313729482,1707624643905,-702.78,0.00019452,2]
[313729484,1707624643914,-11247.42,0.00019452,2]
[313729486,1707624643923,-727.55,0.00019452,2]
[313729488,1707624643933,-500.0,0.00019452,2]
[313729490,1707624643942,-500.0,0.00019452,2]
[313729492,1707624643951,-504.28,0.00019452,2]
[313729494,1707624643961,-2476.83,0.00019452,2]
[313729496,1707624643970,-13347.58,0.00019452,2]
[313729498,1707624643980,-500.0,0.00019452,2]
[313729500,1707624643989,-295.52733503,0.00019452,2]
[313729503,1707624643999,-726.76,0.00019452,2]
[313729517,1707624644135,-500.0,0.00019452,2]
[313729520,1707624644145,-500.0,0.00019452,2]
[313729521,1707624644158,-1577.2,0.00019452,2]
[313729523,1707624644167,-1609.72,0.00019452,2]
[313729525,1707624644182,-11573.2,0.00019452,2]
[313729527,1707624644191,-544.37,0.00019452,2]
[313729529,1707624644200,-500.0,0.00019452,2]
[313729531,1707624644208,-1150.66,0.00019452,2]
[313729533,1707624644220,-176.65827073,0.00019452,2]
[313729535,1707624644229,-1410.39,0.00019452,2]
[313729537,1707624644238,-9482.3,0.00019452,2]
[313729539,1707624644247,-500.0,0.00019452,2]
[313729541,1707624644258,-8567.69,0.00019452,2]
[313729543,1707624644267,-1663.17,0.00019452,2]
[313729545,1707624644276,-1918.08,0.00019452,2]
[313729547,1707624644285,-500.0,0.00019452,2]
[313729549,1707624644294,-502.67216967,0.00019452,2]
[313729551,1707624644303,-338.92222389,0.000195,2]
[313729552,1707624644312,-155.5880792,0.00019589,2]
[313729554,1707624644321,-153.0,0.00019589,2]
[313729555,1707624644331,-153.0,0.00019589,2]
[313729557,1707624644340,-153.0,0.00019589,2]
[313729559,1707624644350,-452.01155423,0.00019589,2]
[313729561,1707624644361,-500.0,0.00019726,2]
[313729563,1707624644370,-515.57,0.00019726,2]
[313729565,1707624644379,-500.0,0.00019726,2]
[313729566,1707624644389,-238.31577832,0.00019726,2]
[313729567,1707624644399,-500.0,0.00019726,2]
[313729568,1707624644408,-500.0,0.00019726,2]
[313729569,1707624644417,-590.65,0.00019726,2]
[313729570,1707624644426,-500.0,0.00019726,2]
[313729571,1707624644436,-500.0,0.00019726,2]
[313729573,1707624644445,-500.0,0.00019726,2]
[313729574,1707624644455,-500.0,0.00019726,2]
[313729575,1707624644465,-500.0,0.00019726,2]
[313729576,1707624644474,-500.0,0.00019726,2]
[313729578,1707624644483,-500.0,0.00019726,2]
[313729580,1707624644492,-500.0,0.00019726,2]
[313729582,1707624644501,-2386.71,0.00019726,2]
[313729584,1707624644509,-500.0,0.00019726,2]
[313729586,1707624644519,-500.0,0.00019726,2]
[313729588,1707624644528,-1159.04,0.00019726,2]
[313729590,1707624644537,-500.0,0.00019726,2]
[313729592,1707624644546,-1012.33,0.00019726,2]
[313729594,1707624644555,-500.0,0.00019726,2]
[313729596,1707624644564,-1113.52,0.00019726,2]
[313729598,1707624644572,-5642.2,0.00019726,2]
[313729599,1707624644581,-7870.64,0.00019726,2]
[313729601,1707624644590,-2327.47,0.00019726,2]
[313729603,1707624644600,-500.0,0.00019726,2]
[313729605,1707624644610,-647.98216186,0.00019726,2]
[313729606,1707624644619,-500.0,0.00019726,2]
[313729607,1707624644628,-565.96015145,0.00019726,2]
[313729608,1707624644637,-1942.14,0.00019726,2]
[313729609,1707624644646,-1301.71,0.00019726,2]
[313729610,1707624644655,-1888.35,0.00019726,2]
[313729611,1707624644664,-500.0,0.00019726,2]
[313729612,1707624644674,-3242.84,0.00019726,2]
[313729613,1707624644683,-500.0,0.00019726,2]
[313729614,1707624644693,-3057.15,0.00019726,2]
[313729615,1707624644702,-11313.44,0.00019726,2]
[313729616,1707624644711,-24197.98,0.00019726,2]
[313729617,1707624644721,-500.0,0.00019726,2]
[313729618,1707624644730,-1629.43,0.00019726,2]
[313729619,1707624644739,-2670.65,0.00019726,2]
[313729620,1707624644748,-500.0,0.00019726,2]
[313729621,1707624644758,-709.0,0.00019726,2]
[313729622,1707624644767,-2624.66,0.00019726,2]
[313729623,1707624644777,-500.0,0.00019726,2]
[313729624,1707624644786,-500.0,0.00019726,2]
[313729625,1707624644795,-2467.66,0.00019726,2]
[313729626,1707624644805,-702.78,0.00019726,2]
[313729627,1707624644815,-11247.42,0.00019726,2]
[313729628,1707624644824,-727.55,0.00019726,2]
[313729629,1707624644833,-500.0,0.00019726,2]
[313729631,1707624644843,-500.0,0.00019726,2]
[313729633,1707624644852,-2476.83,0.00019726,2]
[313729634,1707624644864,-504.28,0.00019726,2]
[313729635,1707624644873,-13347.58,0.00019726,2]
[313729636,1707624644882,-500.0,0.00019726,2]
[313729637,1707624644891,-726.76,0.00019726,2]
[313729638,1707624644900,-500.0,0.00019726,2]
[313729639,1707624644909,-500.0,0.00019726,2]
[313729640,1707624644918,-1577.2,0.00019726,2]
[313729641,1707624644927,-1609.72,0.00019726,2]
[313729643,1707624644936,-11573.2,0.00019726,2]
[313729645,1707624644946,-544.37,0.00019726,2]
[313729646,1707624644955,-500.0,0.00019726,2]
[313729647,1707624644963,-1150.66,0.00019726,2]
[313729648,1707624644973,-1410.39,0.00019726,2]
[313729649,1707624644982,-9482.3,0.00019726,2]
[313729650,1707624644992,-591.19612144,0.00019726,2]
[313729651,1707624645002,-8567.69,0.00019726,2]
[313729652,1707624645011,-1663.17,0.00019726,2]
[313729653,1707624645021,-1918.08,0.00019726,2]
[313729654,1707624645031,-500.0,0.00019726,2]
[313729655,1707624645041,-200.0,0.000198,2]
[313729656,1707624645050,-200.0,0.000198,2]
[313729657,1707624645059,-200.0,0.000198,2]
[313729658,1707624645068,-200.0,0.000198,2]
[313729659,1707624645078,-200.0,0.000198,2]
[313729660,1707624645087,-44444.0,0.000199,2]
[313729661,1707624645098,-35053.28205771,0.0002,2]
[313729662,1707624645107,-324.25284351,0.0002,2]
[313729663,1707624645116,-1202.57082301,0.0002,2]
[313729664,1707624645125,-681.3383372,0.0002,2]
[313729665,1707624645135,-500.0,0.0002,2]
[313729666,1707624645144,-515.57,0.0002,2]
[313729667,1707624645153,-500.0,0.0002,2]
[313729668,1707624645162,-500.0,0.0002,2]
[313729669,1707624645171,-500.0,0.0002,2]
[313729670,1707624645181,-590.65,0.0002,2]
[313729671,1707624645194,-500.0,0.0002,2]
[313729673,1707624645203,-500.0,0.0002,2]
[313729675,1707624645213,-495.63974214,0.0002,2]
[313729677,1707624645225,-500.0,0.0002,2]
[313729679,1707624645234,-500.0,0.0002,2]
[313729681,1707624645242,-500.0,0.0002,2]
[313729683,1707624645251,-500.0,0.0002,2]
[313729685,1707624645260,-500.0,0.0002,2]
[313729687,1707624645269,-2386.71,0.0002,2]
[313729689,1707624645279,-500.0,0.0002,2]
[313729691,1707624645288,-500.0,0.0002,2]
[313729693,1707624645297,-1159.04,0.0002,2]
[313729695,1707624645306,-500.0,0.0002,2]
[313729697,1707624645315,-1012.33,0.0002,2]
[313729699,1707624645324,-158.72303613,0.0002,2]
[313729701,1707624645333,-1113.52,0.0002,2]
[313729703,1707624645342,-5642.2,0.0002,2]
[313729705,1707624645352,-7870.64,0.0002,2]
[313729707,1707624645362,-2327.47,0.0002,2]
[313729709,1707624645371,-500.0,0.0002,2]
[313729711,1707624645380,-500.0,0.0002,2]
[313729713,1707624645389,-1942.14,0.0002,2]
[313729715,1707624645398,-1301.71,0.0002,2]
[313729716,1707624645407,-1888.35,0.0002,2]
[313729718,1707624645416,-500.0,0.0002,2]
[313729720,1707624645427,-3242.84,0.0002,2]
[313729722,1707624645435,-500.0,0.0002,2]
[313729724,1707624645445,-3057.15,0.0002,2]
[313729726,1707624645454,-11313.44,0.0002,2]
[313729728,1707624645463,-24197.98,0.0002,2]
[313729730,1707624645472,-511.4034401,0.0002,2]
[313729732,1707624645481,-1629.43,0.0002,2]
[313729734,1707624645490,-2670.65,0.0002,2]
[313729736,1707624645500,-500.0,0.0002,2]
[313729738,1707624645508,-709.0,0.0002,2]
[313729740,1707624645517,-169.47520697,0.0002,2]
[313729742,1707624645527,-232.15963997,0.0002,2]
[313729744,1707624645536,-2624.66,0.0002,2]
[313729746,1707624645545,-500.0,0.0002,2]
[313729748,1707624645555,-500.0,0.0002,2]
[313729750,1707624645564,-2467.66,0.0002,2]
[313729752,1707624645573,-702.78,0.0002,2]
[313729754,1707624645582,-11247.42,0.0002,2]
[313729756,1707624645592,-727.55,0.0002,2]
[313729757,1707624645601,-500.0,0.0002,2]
[313729759,1707624645612,-500.0,0.0002,2]
[313729761,1707624645621,-2476.83,0.0002,2]
[313729763,1707624645630,-504.28,0.0002,2]
[313729765,1707624645640,-13347.58,0.0002,2]
[313729767,1707624645649,-505.11379251,0.0002,2]
[313729769,1707624645658,-726.76,0.0002,2]
[313729771,1707624645667,-500.0,0.0002,2]
[313729773,1707624645676,-500.0,0.0002,2]
[313729775,1707624645684,-1577.2,0.0002,2]
[313729777,1707624645694,-1609.72,0.0002,2]
[313729779,1707624645704,-11573.2,0.0002,2]
[313729781,1707624645713,-544.37,0.0002,2]
[313729783,1707624645721,-500.0,0.0002,2]
[313729785,1707624645730,-1150.66,0.0002,2]
[313729787,1707624645739,-1410.39,0.0002,2]
[313729788,1707624645748,-9482.3,0.0002,2]
[313729790,1707624645757,-8567.69,0.0002,2]
[313729792,1707624645766,-1663.17,0.0002,2]
[313729794,1707624645775,-1918.08,0.0002,2]
[313729796,1707624645787,-500.0,0.0002,2]
[313729798,1707624645805,-151.0,0.00020021,2]
[313729800,1707624645815,-3660.07575842,0.000201,4]
[313729802,1707624645824,-2092.20651111,0.000201,2]
[313729804,1707624645836,-300.0,0.000201,2]
[313729806,1707624645845,-500.0,0.00020273,2]
[313729808,1707624645854,-515.57,0.00020273,2]
[313729810,1707624645864,-500.0,0.00020273,2]
[313729812,1707624645873,-500.0,0.00020273,2]
[313729813,1707624645882,-500.0,0.00020273,2]
[313729815,1707624645891,-590.65,0.00020273,2]
[313729817,1707624645901,-500.0,0.00020273,2]
[313729819,1707624645911,-500.0,0.00020273,2]
[313729821,1707624645921,-500.0,0.00020273,2]
[313729823,1707624645930,-504.85110038,0.00020273,2]
[313729825,1707624645939,-500.0,0.00020273,2]
[313729827,1707624645949,-500.0,0.00020273,2]
[313729829,1707624645958,-500.0,0.00020273,2]
[313729831,1707624645967,-2386.71,0.00020273,2]
[313729833,1707624645976,-500.0,0.00020273,2]
[313729835,1707624645986,-351.91803057,0.00020273,2]
[313729837,1707624645995,-1159.04,0.00020273,2]
[313729840,1707624646005,-500.0,0.00020273,2]
[313729843,1707624646014,-1012.33,0.00020273,2]
[313729846,1707624646023,-1113.52,0.00020273,2]
[313729849,1707624646032,-5642.2,0.00020273,2]
[313729851,1707624646041,-7870.64,0.00020273,2]
[313729853,1707624646050,-2327.47,0.00020273,2]
[313729855,1707624646059,-500.0,0.00020273,2]
[313729857,1707624646069,-500.0,0.00020273,2]
[313729858,1707624646078,-1942.14,0.00020273,2]
[313729860,1707624646088,-1301.71,0.00020273,2]
[313729862,1707624646097,-1888.35,0.00020273,2]
[313729864,1707624646106,-500.0,0.00020273,2]
[313729866,1707624646116,-3242.84,0.00020273,2]
[313729868,1707624646126,-500.0,0.00020273,2]
[313729870,1707624646135,-3057.15,0.00020273,2]
[313729872,1707624646144,-11313.44,0.00020273,2]
[313729874,1707624646153,-24197.98,0.00020273,2]
[313729876,1707624646161,-1629.43,0.00020273,2]
[313729878,1707624646172,-2670.65,0.00020273,2]
[313729880,1707624646182,-500.0,0.00020273,2]
[313729881,1707624646191,-709.0,0.00020273,2]
[313729883,1707624646200,-2624.66,0.00020273,2]
[313729885,1707624646209,-500.0,0.00020273,2]
[313729887,1707624646220,-500.0,0.00020273,2]
[313729889,1707624646229,-2467.66,0.00020273,2]
[313729891,1707624646238,-702.78,0.00020273,2]
[313729893,1707624646247,-11247.42,0.00020273,2]
[313729895,1707624646256,-727.55,0.00020273,2]
[313729897,1707624646266,-500.0,0.00020273,2]
[313729898,1707624646275,-500.0,0.00020273,2]
[313729899,1707624646284,-2476.83,0.00020273,2]
[313729900,1707624646293,-504.28,0.00020273,2]
[313729901,1707624646302,-13347.58,0.00020273,2]
[313729902,1707624646311,-726.76,0.00020273,2]
[313729903,1707624646321,-500.0,0.00020273,2]
[313729904,1707624646329,-500.0,0.00020273,2]
[313729905,1707624646339,-1577.2,0.00020273,2]
[313729906,1707624646348,-1609.72,0.00020273,2]
[313729907,1707624646357,-11573.2,0.00020273,2]
[313729908,1707624646366,-544.37,0.00020273,2]
[313729909,1707624646375,-500.0,0.00020273,2]
[313729910,1707624646385,-1150.66,0.00020273,2]
[313729911,1707624646394,-1410.39,0.00020273,2]
[313729912,1707624646402,-9482.3,0.00020273,2]
[313729913,1707624646411,-8567.69,0.00020273,2]
[313729914,1707624646421,-1663.17,0.00020273,2]
[313729915,1707624646430,-1918.08,0.00020273,2]
[313729916,1707624646439,-500.0,0.00020273,2]
[313729917,1707624646448,-2200.26367492,0.00020275,5]
[313729918,1707624646457,-500.0,0.00020547,2]
[313729919,1707624646466,-515.57,0.00020547,2]
[313729920,1707624646475,-500.0,0.00020547,2]
[313729921,1707624646484,-500.0,0.00020547,2]
[313729922,1707624646493,-500.0,0.00020547,2]
[313729923,1707624646502,-590.65,0.00020547,2]
[313729924,1707624646512,-500.0,0.00020547,2]
[313729926,1707624646521,-500.0,0.00020547,2]
[313729927,1707624646530,-500.0,0.00020547,2]
[313729929,1707624646542,-500.0,0.00020547,2]
[313729931,1707624646551,-500.0,0.00020547,2]
[313729933,1707624646561,-500.0,0.00020547,2]
[313729935,1707624646569,-2386.71,0.00020547,2]
[313729937,1707624646579,-500.0,0.00020547,2]
[313729939,1707624646588,-1159.04,0.00020547,2]
[313729941,1707624646597,-500.0,0.00020547,2]
[313729943,1707624646606,-1012.33,0.00020547,2]
[313729945,1707624646617,-1113.52,0.00020547,2]
[313729947,1707624646626,-5642.2,0.00020547,2]
[313729949,1707624646635,-7870.64,0.00020547,2]
[313729951,1707624646644,-2327.47,0.00020547,2]
[313729953,1707624646653,-500.0,0.00020547,2]
[313729955,1707624646662,-500.0,0.00020547,2]
[313729957,1707624646674,-1942.14,0.00020547,2]
[313729959,1707624646687,-1301.71,0.00020547,2]
[313729960,1707624646696,-1888.35,0.00020547,2]
[313729963,1707624646707,-500.0,0.00020547,2]
[313729964,1707624646716,-3242.84,0.00020547,2]
[313729966,1707624646725,-500.0,0.00020547,2]
[313729968,1707624646735,-3057.15,0.00020547,2]
[313729970,1707624646744,-11313.44,0.00020547,2]
[313729972,1707624646753,-24197.98,0.00020547,2]
[313729974,1707624646763,-1629.43,0.00020547,2]
[313729976,1707624646772,-2670.65,0.00020547,2]
[313729978,1707624646782,-500.0,0.00020547,2]
[313729980,1707624646791,-709.0,0.00020547,2]
[313729982,1707624646800,-500.0,0.00020547,2]
[313729984,1707624646810,-2624.66,0.00020547,2]
[313729986,1707624646819,-500.0,0.00020547,2]
[313729988,1707624646828,-2467.66,0.00020547,2]
[313729990,1707624646837,-702.78,0.00020547,2]
[313729992,1707624646845,-11247.42,0.00020547,2]
[313729994,1707624646855,-727.55,0.00020547,2]
[313729996,1707624646866,-342.90716355,0.00020547,2]
[313729998,1707624646876,-500.0,0.00020547,2]
[313730000,1707624646885,-2476.83,0.00020547,2]
[313730002,1707624646895,-504.28,0.00020547,2]
[313730004,1707624646904,-13347.58,0.00020547,2]
[313730006,1707624646913,-726.76,0.00020547,2]
[313730008,1707624646922,-500.0,0.00020547,2]
[313730010,1707624646931,-501.80100016,0.00020547,2]
[313730012,1707624646940,-1577.2,0.00020547,2]
[313730014,1707624646949,-1609.72,0.00020547,2]
[313730016,1707624646959,-11573.2,0.00020547,2]
[313730018,1707624646969,-544.37,0.00020547,2]
[313730021,1707624646980,-500.0,0.00020547,2]
[313730023,1707624646989,-1150.66,0.00020547,2]
[313730025,1707624646999,-1410.39,0.00020547,2]
[313730027,1707624647008,-9482.3,0.00020547,2]
[313730029,1707624647017,-8567.69,0.00020547,2]
[313730031,1707624647026,-1663.17,0.00020547,2]
[313730033,1707624647035,-1918.08,0.00020547,2]
[313730034,1707624647045,-500.0,0.00020547,2]
[313730036,1707624647054,-223.529861,0.00020548,2]
[313730039,1707624647063,-500.0,0.00020821,2]
[313730040,1707624647072,-515.57,0.00020821,2]
[313730043,1707624647081,-500.0,0.00020821,2]
[313730045,1707624647091,-500.0,0.00020821,2]
[313730047,1707624647100,-404.34782388,0.00020821,2]
[313730048,1707624647109,-590.65,0.00020821,2]
[313730050,1707624647118,-500.0,0.00020821,2]
[313730052,1707624647127,-180.08129055,0.00020821,2]
[313730055,1707624647137,-500.0,0.00020821,2]
[313730056,1707624647146,-500.0,0.00020821,2]
[313730058,1707624647155,-500.0,0.00020821,2]
[313730060,1707624647164,-500.0,0.00020821,2]
[313730062,1707624647173,-2386.71,0.00020821,2]
[313730065,1707624647186,-500.0,0.00020821,2]
[313730067,1707624647195,-1159.04,0.00020821,2]
[313730068,1707624647204,-500.0,0.00020821,2]
[313730070,1707624647214,-1012.33,0.00020821,2]
[313730072,1707624647223,-1113.52,0.00020821,2]
[313730074,1707624647233,-5642.2,0.00020821,2]
[313730076,1707624647242,-7870.64,0.00020821,2]
[313730078,1707624647251,-2327.47,0.00020821,2]
[313730080,1707624647262,-500.0,0.00020821,2]
[313730082,1707624647272,-500.0,0.00020821,2]
[313730084,1707624647281,-1942.14,0.00020821,2]
[313730086,1707624647290,-1301.71,0.00020821,2]
[313730088,1707624647300,-1888.35,0.00020821,2]
[313730100,1707624647405,-500.0,0.00020821,2]
[313730102,1707624647429,-3242.84,0.00020821,2]
[313730104,1707624647438,-500.0,0.00020821,2]
[313730105,1707624647448,-3057.15,0.00020821,2]
[313730107,1707624647457,-11313.44,0.00020821,2]
[313730109,1707624647466,-24197.98,0.00020821,2]
[313730111,1707624647475,-1629.43,0.00020821,2]
[313730113,1707624647485,-2670.65,0.00020821,2]
[313730115,1707624647494,-500.0,0.00020821,2]
[313730117,1707624647503,-709.0,0.00020821,2]
[313730119,1707624647513,-500.0,0.00020821,2]
[313730121,1707624647521,-2624.66,0.00020821,2]
[313730122,1707624647530,-500.0,0.00020821,2]
[313730124,1707624647539,-2467.66,0.00020821,2]
[313730126,1707624647548,-702.78,0.00020821,2]
[313730127,1707624647557,-11247.42,0.00020821,2]
[313730128,1707624647567,-727.55,0.00020821,2]
[313730130,1707624647576,-500.0,0.00020821,2]
[313730132,1707624647585,-504.28,0.00020821,2]
[313730133,1707624647594,-2476.83,0.00020821,2]
[313730134,1707624647603,-13347.58,0.00020821,2]
[313730135,1707624647617,-726.76,0.00020821,2]
[313730136,1707624647633,-500.0,0.00020821,2]
[313730137,1707624647642,-1577.2,0.00020821,2]
[313730138,1707624647652,-1609.72,0.00020821,2]
[313730139,1707624647661,-11573.2,0.00020821,2]
[313730140,1707624647671,-544.37,0.00020821,2]
[313730141,1707624647680,-500.0,0.00020821,2]
[313730142,1707624647689,-1150.66,0.00020821,2]
[313730143,1707624647699,-1410.39,0.00020821,2]
[313730144,1707624647709,-9482.3,0.00020821,2]
[313730145,1707624647719,-8567.69,0.00020821,2]
[313730146,1707624647728,-1663.17,0.00020821,2]
[313730147,1707624647737,-1918.08,0.00020821,2]
[313730148,1707624647747,-500.0,0.00020821,2]
[313730149,1707624647756,-208.83275062,0.00020822,2]
[313730150,1707624647765,-500.0,0.00020822,2]
[313730151,1707624647775,-500.0,0.00020822,2]
[313730152,1707624647788,-332.83333408,0.00020822,2]
[313730153,1707624647807,-252.38142124,0.00020822,2]
[313730154,1707624647816,-346.4842428,0.00020822,2]
[313730155,1707624647826,-478.90161493,0.00020822,2]
[313730156,1707624647835,-500.0,0.00020822,2]
[313730157,1707624647844,-625.71224038,0.00020822,2]
[313730158,1707624647854,-500.0,0.00020822,2]
[313730159,1707624647864,-500.0,0.00020822,2]
[313730160,1707624647874,-500.0,0.00020822,2]
[313730161,1707624647883,-500.0,0.00020822,2]
[313730162,1707624647892,-500.0,0.00020822,2]
[313730163,1707624647901,-561.29063533,0.00020822,2]
[313730164,1707624647910,-500.0,0.00020822,2]
[313730165,1707624647919,-422.16097773,0.00020822,2]
[313730166,1707624647928,-641.36531246,0.00020822,2]
[313730167,1707624647938,-498.19147918,0.00020822,2]
[313730168,1707624647947,-500.0,0.00020822,2]
[313730169,1707624647956,-280.4652766,0.00020822,2]
[313730170,1707624647965,-500.0,0.00020822,2]
[313730171,1707624647974,-500.0,0.00020822,2]
[313730172,1707624647984,-500.0,0.00020822,2]
[313730173,1707624647993,-174.47072304,0.00020822,2]
[313730174,1707624648003,-245.09912521,0.00020822,2]
[313730175,1707624648012,-500.0,0.00020822,2]
[313730176,1707624648021,-500.0,0.00020822,2]
[313730177,1707624648030,-373.19407225,0.00020822,2]
[313730178,1707624648039,-380.44622686,0.00020822,2]
[313730179,1707624648048,-500.0,0.00020822,2]
[313730180,1707624648057,-500.2804915,0.00020822,2]
[313730181,1707624648067,-378.66231442,0.00020822,2]
[313730182,1707624648076,-207.0,0.00020822,2]
[313730183,1707624648085,-244.7756079,0.00020822,2]
[313730184,1707624648094,-500.0,0.00020822,2]
[313730185,1707624648104,-184.5,0.00020822,2]
[313730186,1707624648114,-500.0,0.00020822,2]
[313730187,1707624648124,-402.52442032,0.00020822,2]
[313730188,1707624648133,-552.6770188,0.00020822,2]
[313730189,1707624648143,-370.0,0.00020822,2]
[313730190,1707624648152,-347.6466822,0.00020822,2]
[313730191,1707624648162,-356.86012523,0.00020822,2]
[313730192,1707624648171,-381.1544474,0.00020822,2]
[313730193,1707624648181,-500.0,0.00020822,2]
[313730194,1707624648194,-500.0,0.00020822,2]
[313730195,1707624648203,-263.76991269,0.00020822,2]
[313730196,1707624648213,-204.30044177,0.00020822,2]
[313730197,1707624648223,-190.14748044,0.00021,2]
[313730198,1707624648232,-151.0,0.00021026,2]
[313730199,1707624648244,-500.0,0.00021095,2]
[313730200,1707624648254,-515.57,0.00021095,2]
[313730201,1707624648264,-500.0,0.00021095,2]
[313730202,1707624648273,-500.0,0.00021095,2]
[313730203,1707624648282,-590.65,0.00021095,2]
[313730204,1707624648292,-500.0,0.00021095,2]
[313730205,1707624648302,-500.0,0.00021095,2]
[313730206,1707624648311,-500.0,0.00021095,2]
[313730207,1707624648321,-500.0,0.00021095,2]
[313730208,1707624648330,-500.0,0.00021095,2]
[313730209,1707624648339,-2386.71,0.00021095,2]
[313730210,1707624648349,-500.0,0.00021095,2]
[313730211,1707624648359,-1159.04,0.00021095,2]
[313730212,1707624648369,-500.0,0.00021095,2]
[313730213,1707624648378,-1012.33,0.00021095,2]
[313730214,1707624648387,-1113.52,0.00021095,2]
[313730215,1707624648396,-5642.2,0.00021095,2]
[313730216,1707624648406,-7870.64,0.00021095,2]
[313730217,1707624648415,-2327.47,0.00021095,2]
[313730218,1707624648424,-500.0,0.00021095,2]
[313730219,1707624648433,-500.0,0.00021095,2]
[313730220,1707624648443,-1942.14,0.00021095,2]
[313730221,1707624648452,-1301.71,0.00021095,2]
[313730222,1707624648461,-1888.35,0.00021095,2]
[313730223,1707624648470,-500.0,0.00021095,2]
[313730224,1707624648479,-3242.84,0.00021095,2]
[313730225,1707624648488,-500.0,0.00021095,2]
[313730226,1707624648498,-3057.15,0.00021095,2]
[313730227,1707624648507,-11313.44,0.00021095,2]
[313730228,1707624648516,-24197.98,0.00021095,2]
[313730229,1707624648525,-1629.43,0.00021095,2]
[313730230,1707624648534,-2670.65,0.00021095,2]
[313730231,1707624648544,-500.0,0.00021095,2]
[313730232,1707624648553,-709.0,0.00021095,2]